{"text_format":"1","workbook":"xlsx","n_sheets":15,"sheets":["PORTADA","MENU","OBLIGACIONES","FUNDAMENTO","EJEMPLO","ANEXO1","ANEXO3","ANEXO4","ANEXO5","ANEXO8V","ANEXO9","CLAVEG","PAISO","CODIGO","GENERALES"],"not_rendered":{"charts":0,"images":14,"macros":1,"external_links":2,"defined_names":31,"comments":6,"pivot_tables":0},"unopened":[],"bounds":{"document_bytes":16777216,"sheet_cells":100000,"rows_first":2000,"rows_last":500,"rows_between":2000,"halvings":0,"cell_chars":16384,"cell_head_chars":4096},"cells_cut":0,"cells_raw":0,"read":"whole","date_system":"1900"}

{"sheet":"PORTADA","index":0,"n_rows":0,"n_cols":0,"rows_kept":0,"cut":false,"hidden":false,"merged":[]}

{"sheet":"MENU","index":1,"n_rows":16,"n_cols":3,"rows_kept":16,"cut":false,"hidden":true,"merged":[]}
[]
[]
[]
[]
[null,"Descripción","Nombre de la hoja"]
[null,"Declaraciones informativas","OBLIGACIONES"]
[null,"Regla 2.5.1 RMF 2023","FUNDAMENTO"]
[null,"Ejemplo IEPS","EJEMPLO"]
[null,"Formato anexo 1","ANEXO 1"]
[null,"Formato anexo 3","ANEXO3"]
[null,"Formato anexo 4","ANEXO4"]
[null,"Formato anexo 5","ANEXO5"]
[null,"Formato entidad federativa ANEXO 8","ANEXO8V"]
[null,"Formato anexo 9","ANEXO 9"]
[null,"Claves de productos MULTI-IEPS","CLAVEG"]
[null,"Claves de país MULTI-IEPS","PAISO"]

{"sheet":"OBLIGACIONES","index":2,"n_rows":87,"n_cols":6,"rows_kept":87,"cut":false,"hidden":true,"merged":[[85,4,85,5],[7,4,7,5],[11,4,12,4],[11,5,12,5],[19,4,19,5],[29,4,30,5],[31,4,32,4],[31,5,32,5],[39,4,39,5],[49,4,49,5],[59,4,59,5],[67,4,67,5],[76,4,76,5],[9,1,10,1],[22,1,23,1],[22,2,23,2],[22,4,23,4],[22,5,23,5],[9,2,10,2],[9,4,10,4],[9,5,10,5]]}
[]
[]
[null,"Producto","Inciso del artículo 2 fracción I LIEPS"]
[null,"Bebidas con contenido alcohólico y cerveza","A"]
[null,"Obligaciones","Fundamento","Formato MULTI-IEPS","Infracción","Multa"]
[null,"Declaración trimestral de los contribuyentes que se les traslado el IEPS expresamente y por separado, en caso de vinos de mesa semestral.","Artículo 19 fracción II LIEPS, regla 5.2.1 RMF 2024","Anexo 1","No proporcionar la información a que se refiere el artículo 19, fracciones II, tercer párrafo, XIII y XV de la Ley del Impuesto Especial sobre Producción y Servicios.\nFundamento: Artículo 81 fracción XVIII CFF.","De $14,380.00 a $23,940.00\n\nFundamento: Artículo 82 fracción XVIII CFF."]
[null,"Declaración trimestral de los 50 principales clientes y proveedores, en caso de vinos de mesa en forma semestral","Artículo 19 fracción VIII LIEPS","Anexo 1","No presentar la información a que se refieren el 19, fracciones VIII, IX y XII, de la Ley del Impuesto Especial sobre Producción y Servicios, dentro del plazo previsto en dichos preceptos, o no presentarla conforme lo establecen los mismos.\nFundamento: Artículo 81 fracción VIII CFF.","De $96,230.00 a $288,660.00\n\nFundamento: Artículo 82 fracción VIII CFF."]
[null,"Proporcionar a las autoridades fiscales durante el mes de marzo de cada año, la información que corresponda de los bienes que produjeron, enajenaron o importaron en el año inmediato anterior, respecto de su consumo por entidad federativa e impuesto correspondiente, así como de los servicios prestados por establecimiento en cada entidad federativa.","Artículo 19 fracción VI LIEPS, regla 5.2.1 RMF 2024","Anexo 8","Artículo 91 CFF. La infracción en cualquier forma a las disposiciones fiscales, diversa a las previstas en este Capítulo, se sancionará con multa $490.00 a $4,640.00"]
[null,"Los fabricantes, productores o envasadores, deberán llevar un control físico del volumen fabricado, producido o envasado, según corresponda, así como reportar trimestralmente, en los meses de abril, julio, octubre y enero, del año que corresponda, la lectura mensual de los registros de cada uno de los dispositivos que se utilicen para llevar el citado control, en el trimestre inmediato anterior al de su declaración.\n\nNo aplica a los productores de vinos de mesa","Artículo 19 fracción X LIEPS, regla 5.2.1 RMF 2024","Anexo 9","No proporcionar la información a que se refiere el artículo 19, fracciones X y XVI de la Ley del Impuesto Especial sobre Producción y Servicios.\n\nFundamento: Artículo 81 fracción XIX CFF.","De $23,940.00 a $47,930.00\n\nFundamento: Artículo 82 fracción XIX CFF."]
[null,"Los fabricantes, productores y envasadores, de alcohol, alcohol desnaturalizado, mieles incristalizables y de bebidas alcohólicas, deberán reportar en el mes de enero de cada año, al Servicio de Administración Tributaria, las características de los equipos que utilizarán para la producción, destilación, envasamiento y almacenaje de dichos bienes, así como de los contenedores para el almacenaje de dichos bienes cuando no se trate de equipo.\n \nAsimismo, deberán reportar a dicha dependencia la fecha de inicio del proceso de producción, destilación o envasamiento, con quince días de anticipación al mismo, acompañando la información sobre las existencias de producto en ese momento. Igualmente, deberán reportar la fecha en que finalice el proceso, dentro de los quince días siguientes a la conclusión del mismo, acompañando la información sobre el volumen fabricado, producido o envasado.\n\nEn el caso de que se adquieran o se incorporen nuevos equipos de destilación o envasamiento, se modifiquen los instalados o se enajenen los reportados por el contribuyente, se deberá presentar aviso ante las autoridades fiscales dentro de los 15 días siguientes a que esto ocurra.","Artículo 19 fracción XII LIEPS, regla 5.2.1 RMF 2024","Anexo 3 Equipos","No presentar la información a que se refieren el 19, fracciones VIII, IX y XII, de la Ley del Impuesto Especial sobre Producción y Servicios, dentro del plazo previsto en dichos preceptos, o no presentarla conforme lo establecen los mismos.\nFundamento: Artículo 81 fracción VIII CFF.","De $96,230.00 a $288,660.00\n\nFundamento: Artículo 82 fracción VIII CFF."]
[null,null,null,"Anexto 4 Proceso de producción, destilación o envasamiento"]
[null,"Declaración trimestral del precio de enajenación de cada producto, valor y volumen de los mismos, en caso de vinos de mesa es semestral","Artículo 19 fracción XIII LIEPS, regla 5.2.1 RMF 2024","Anexo 1","No proporcionar la información a que se refiere el artículo 19, fracciones II, tercer párrafo, XIII y XV de la Ley del Impuesto Especial sobre Producción y Servicios.\n\nFundamento: Artículo 81 fracción XVIII CFF.","De $12,700.00 a $21,150.00\n\nFundamento: Artículo 82 fracción XVIII CFF."]
[null,"Reporte trimestral de los marbes y precintos obtenidos, utilizados, destruidos, e inutilizados durante el trimestre inmediato anterior.","Artículo 19 fracción XV LIEPS, regla 5.2.1 RMF 2024","Página del SAT marbes y precintos"]
[null,"Los productores o envasadores de los bienes a que se refiere el numeral 3 (bebidas alcoholicas con graduación alcohólica mayor a 20° G.L.) del inciso A) de la fracción I del artículo 2o. de esta Ley, estarán obligados a llevar un control volumétrico de producción y presentar a la Secretaría de Hacienda y Crédito Público, trimestralmente, en los meses de abril, julio, octubre y enero, del año que corresponda, un informe que contenga el número de litros producidos de conformidad con el citado control, del trimestre inmediato anterior a la fecha en que se informa.","Artículo 19 fracción XVI LIEPS, regla 5.2.1 RMF 2024","Anexo 9","No proporcionar la información a que se refiere el artículo 19, fracciones X y XVI de la Ley del Impuesto Especial sobre Producción y Servicios.\n\nFundamento: Artículo 81 fracción XIX CFF.","De $23,940.00 a $47,930.00\n\nFundamento: Artículo 82 fracción XIX CFF."]
[]
[]
[null,"Producto","Inciso del artículo 2 fracción I LIEPS"]
[null,"Alcohol, alcohol desnaturalizado y mieles incristalizables","B"]
[null,"Obligaciones","Fundamento","Formato MULTI-IEPS"]
[null,"Proporcionar a las autoridades fiscales durante el mes de marzo de cada año, la información que corresponda de los bienes que produjeron, enajenaron o importaron en el año inmediato anterior, respecto de su consumo por entidad federativa e impuesto correspondiente, así como de los servicios prestados por establecimiento en cada entidad federativa.","Artículo 19 fracción VI LIEPS, regla 5.2.1 RMF 2024","Anexo 8","Artículo 91 CFF. La infracción en cualquier forma a las disposiciones fiscales, diversa a las previstas en este Capítulo, se sancionará con multa $490.00 a $4,640.00"]
[null,"Declaración trimestral de los 50 principales clientes y proveedores.","Artículo 19 fracción VIII LIEPS","Anexo 1","No presentar la información a que se refieren el 19, fracciones VIII, IX y XII, de la Ley del Impuesto Especial sobre Producción y Servicios, dentro del plazo previsto en dichos preceptos, o no presentarla conforme lo establecen los mismos.\nFundamento: Artículo 81 fracción VIII CFF.","De $96,230.00 a $288,660.00\n\nFundamento: Artículo 82 fracción VIII CFF."]
[null,"Los fabricantes, productores o envasadores, deberán llevar un control físico del volumen fabricado, producido o envasado, según corresponda, así como reportar trimestralmente, en los meses de abril, julio, octubre y enero, del año que corresponda, la lectura mensual de los registros de cada uno de los dispositivos que se utilicen para llevar el citado control, en el trimestre inmediato anterior al de su declaración.","Artículo 19 fracción X LIEPS, regla 5.2.1 RMF 2024","Anexo 9","No proporcionar la información a que se refiere el artículo 19, fracciones X y XVI de la Ley del Impuesto Especial sobre Producción y Servicios.\n\nFundamento: Artículo 81 fracción XIX CFF.","De $23,940.00 a $47,930.00\n\nFundamento: Artículo 82 fracción XIX CFF."]
[null,"Los fabricantes, productores y envasadores, de alcohol, alcohol desnaturalizado, mieles incristalizables y de bebidas alcohólicas, deberán reportar en el mes de enero de cada año, al Servicio de Administración Tributaria, las características de los equipos que utilizarán para la producción, destilación, envasamiento y almacenaje de dichos bienes, así como de los contenedores para el almacenaje de dichos bienes cuando no se trate de equipo.\n \nAsimismo, deberán reportar a dicha dependencia la fecha de inicio del proceso de producción, destilación o envasamiento, con quince días de anticipación al mismo, acompañando la información sobre las existencias de producto en ese momento. Igualmente, deberán reportar la fecha en que finalice el proceso, dentro de los quince días siguientes a la conclusión del mismo, acompañando la información sobre el volumen fabricado, producido o envasado.\n\nEn el caso de que se adquieran o se incorporen nuevos equipos de destilación o envasamiento, se modifiquen los instalados o se enajenen los reportados por el contribuyente, se deberá presentar aviso ante las autoridades fiscales dentro de los 15 días siguientes a que esto ocurra.","Artículo 19 fracción XII LIEPS, regla 5.2.1 RMF 2024","Anexo 3 Equipos","No presentar la información a que se refieren el 19, fracciones VIII, IX y XII, de la Ley del Impuesto Especial sobre Producción y Servicios, dentro del plazo previsto en dichos preceptos, o no presentarla conforme lo establecen los mismos.\nFundamento: Artículo 81 fracción VIII CFF.","De $85,000.00 a $254,980.00.\n\nFundamento: Artículo 82 fracción VIII CFF."]
[null,null,null,"Anexto 4 Proceso de producción, destilación o envasamiento"]
[]
[]
[null,"Producto","Inciso del artículo 2 fracción I LIEPS"]
[null,"Tabacos labrados","C"]
[null,"Obligaciones","Fundamento","Formato MULTI-IEPS"]
[null,"Los productores e importadores de cigarros, deberán registrar ante las autoridades fiscales, dentro del primer mes de cada año, la lista de precios de venta por cada uno de los productos que enajenan, clasificados por marca y presentación, señalando los precios al mayorista, detallista y el precio sugerido de venta al público.\n\nAsimismo, se deberá informar a las autoridades fiscales cuando exista alguna modificación en los precios, debiendo presentar a las citadas autoridades, dentro de los 5 días siguientes a que esto ocurra, la lista de precios de venta que estará vigente a partir del momento de la modificación.","Artículo 19 fracción IV LIEPS, regla 5.2.1 RMF 2024","Anexo 2","Artículo 91 CFF. La infracción en cualquier forma a las disposiciones fiscales, diversa a las previstas en este Capítulo, se sancionará con multa $490.00 a $4,640.00"]
[null,"Proporcionar a las autoridades fiscales durante el mes de marzo de cada año, la información que corresponda de los bienes que produjeron, enajenaron o importaron en el año inmediato anterior, respecto de su consumo por entidad federativa e impuesto correspondiente, así como de los servicios prestados por establecimiento en cada entidad federativa.","Artículo 19 fracción VI LIEPS, regla 5.2.1 RMF 2024","Anexo 8"]
[null,"Declaración trimestral de los 50 principales clientes y proveedores.","Artículo 19 fracción VIII LIEPS","Anexo 1","No presentar la información a que se refieren el 19, fracciones VIII, IX y XII, de la Ley del Impuesto Especial sobre Producción y Servicios, dentro del plazo previsto en dichos preceptos, o no presentarla conforme lo establecen los mismos.\nFundamento: Artículo 81 fracción VIII CFF.","De $96,230.00 a $288,660.00\n\nFundamento: Artículo 82 fracción VIII CFF."]
[null,"Los productores e importadores de tabacos labrados, deberán informar a la Secretaría de Hacienda y Crédito Público, conjuntamente con su declaración del mes, el precio de enajenación de cada producto y el valor y volumen de los mismos; así como especificar el peso total de tabacos labrados enajenados o, en su caso, la cantidad total de cigarros enajenados. Esta información se deberá proporcionar por cada una de las marcas que produzca o importe el contribuyente.","Artículo 19 fracción IX LIEPS, regla 5.2.1 RMF 2024","Anexo 2"]
[null,"Los fabricantes, productores o envasadores, deberán llevar un control físico del volumen fabricado, producido o envasado, según corresponda, así como reportar trimestralmente, en los meses de abril, julio, octubre y enero, del año que corresponda, la lectura mensual de los registros de cada uno de los dispositivos que se utilicen para llevar el citado control, en el trimestre inmediato anterior al de su declaración.","Artículo 19 fracción X LIEPS, regla 5.2.1 RMF 2024","Anexo 9","No proporcionar la información a que se refiere el artículo 19, fracciones X y XVI de la Ley del Impuesto Especial sobre Producción y Servicios.\n\nFundamento: Artículo 81 fracción XIX CFF.","De $23,940.00 a $47,930.00\n\nFundamento: Artículo 82 fracción XIX CFF."]
[]
[]
[null,"Producto","Inciso del artículo 2 fracción I LIEPS"]
[null,"Combustibles automotrices","D"]
[null,"Obligaciones","Fundamento","Formato MULTI-IEPS"]
[null,"Proporcionar a las autoridades fiscales durante el mes de marzo de cada año, la información que corresponda de los bienes que produjeron, enajenaron o importaron en el año inmediato anterior, respecto de su consumo por entidad federativa e impuesto correspondiente, así como de los servicios prestados por establecimiento en cada entidad federativa.","Artículo 19 fracción VI LIEPS, regla 5.2.1 RMF 2024","Anexo 8","Artículo 91 CFF. La infracción en cualquier forma a las disposiciones fiscales, diversa a las previstas en este Capítulo, se sancionará con multa $490.00 a $4,640.00"]
[null,"Declaración trimestral de los 50 principales clientes y proveedores.","Artículo 19 fracción VIII LIEPS","Anexo 1","No presentar la información a que se refieren el 19, fracciones VIII, IX y XII, de la Ley del Impuesto Especial sobre Producción y Servicios, dentro del plazo previsto en dichos preceptos, o no presentarla conforme lo establecen los mismos.\nFundamento: Artículo 81 fracción VIII CFF.","De $96,230.00 a $288,660.00\n\nFundamento: Artículo 82 fracción VIII CFF."]
[null,"Los fabricantes, productores o envasadores, deberán llevar un control físico del volumen fabricado, producido o envasado, según corresponda, así como reportar trimestralmente, en los meses de abril, julio, octubre y enero, del año que corresponda, la lectura mensual de los registros de cada uno de los dispositivos que se utilicen para llevar el citado control, en el trimestre inmediato anterior al de su declaración.","Artículo 19 fracción X LIEPS, regla 5.2.1 RMF 2024","Anexo 9","No proporcionar la información a que se refiere el artículo 19, fracciones X y XVI de la Ley del Impuesto Especial sobre Producción y Servicios.\n\nFundamento: Artículo 81 fracción XIX CFF.","De $23,940.00 a $47,930.00\n\nFundamento: Artículo 82 fracción XIX CFF."]
[null,"Declaración trimestral del precio de enajenación de cada producto, valor y volumen de los mismos, en caso de vinos de mesa es semestral","Artículo 19 fracción XIII LIEPS, regla 5.2.1 RMF 2024","Anexo 1","No proporcionar la información a que se refiere el artículo 19, fracciones II, tercer párrafo, XIII y XV de la Ley del Impuesto Especial sobre Producción y Servicios.\nFundamento: Artículo 81 fracción XVIII CFF.","De $14,380.00 a $23,940.00\n\nFundamento: Artículo 82 fracción XVIII CFF."]
[]
[]
[null,"Producto","Inciso del artículo 2 fracción I LIEPS"]
[null,"Bebidas energetizantes, así como concentrados, polvos y jarabes para preparar bebidas energetizantes ","F"]
[null,"Obligaciones","Fundamento","Formato MULTI-IEPS"]
[null,"Declaración trimestral de los contribuyentes que se les traslado el IEPS expresamente y por separado.","Artículo 19 fracción II LIEPS, regla 5.2.1 RMF 2024","Anexo 1","No proporcionar la información a que se refiere el artículo 19, fracciones II, tercer párrafo, XIII y XV de la Ley del Impuesto Especial sobre Producción y Servicios.\nFundamento: Artículo 81 fracción XVIII CFF.","De $14,380.00 a $23,940.00\n\nFundamento: Artículo 82 fracción XVIII CFF."]
[null,"Proporcionar a las autoridades fiscales durante el mes de marzo de cada año, la información que corresponda de los bienes que produjeron, enajenaron o importaron en el año inmediato anterior, respecto de su consumo por entidad federativa e impuesto correspondiente, así como de los servicios prestados por establecimiento en cada entidad federativa.","Artículo 19 fracción VI LIEPS, regla 5.2.1 RMF 2024","Anexo 8","Artículo 91 CFF. La infracción en cualquier forma a las disposiciones fiscales, diversa a las previstas en este Capítulo, se sancionará con multa $490.00 a $4,640.00"]
[null,"Declaración trimestral de los 50 principales clientes y proveedores.","Artículo 19 fracción VIII LIEPS","Anexo 1","No presentar la información a que se refieren el 19, fracciones VIII, IX y XII, de la Ley del Impuesto Especial sobre Producción y Servicios, dentro del plazo previsto en dichos preceptos, o no presentarla conforme lo establecen los mismos.\nFundamento: Artículo 81 fracción VIII CFF.","De $96,230.00 a $288,660.00\n\nFundamento: Artículo 82 fracción VIII CFF."]
[null,"Los fabricantes, productores o envasadores, deberán llevar un control físico del volumen fabricado, producido o envasado, según corresponda, así como reportar trimestralmente, en los meses de abril, julio, octubre y enero, del año que corresponda, la lectura mensual de los registros de cada uno de los dispositivos que se utilicen para llevar el citado control, en el trimestre inmediato anterior al de su declaración.","Artículo 19 fracción X LIEPS, regla 5.2.1 RMF 2024","Anexo 8","No proporcionar la información a que se refiere el artículo 19, fracciones X y XVI de la Ley del Impuesto Especial sobre Producción y Servicios.\n\nFundamento: Artículo 81 fracción XIX CFF.","De $23,940.00 a $47,930.00\n\nFundamento: Artículo 82 fracción XIX CFF."]
[null,"Declaración trimestral del precio de enajenación de cada producto, valor y volumen de los mismos, en caso de vinos de mesa es semestral","Artículo 19 fracción XIII LIEPS, regla 5.2.1 RMF 2024","Anexo 1","No proporcionar la información a que se refiere el artículo 19, fracciones II, tercer párrafo, XIII y XV de la Ley del Impuesto Especial sobre Producción y Servicios.\nFundamento: Artículo 81 fracción XVIII CFF.","De $12,700.00 a $21,150.00\n\nFundamento: Artículo 82 fracción XVIII CFF."]
[]
[]
[null,"Producto","Inciso del artículo 2 fracción I LIEPS"]
[null,"Bebidas saborizadas; concentrados, polvos, jarabes, esencias o extractos de sabores, que al diluirse permitan obtener bebidas saborizadas; y jarabes o concentrados para preparar bebidas saborizadas que se expendan en envases abiertos utilizando aparatos automáticos, eléctricos o mecánicos, siempre que los bienes a que se refiere este inciso contengan cualquier tipo de azúcares añadidos","G"]
[null,"Obligaciones","Fundamento","Formato MULTI-IEPS"]
[null,"Declaración trimestral de los contribuyentes que se les traslado el IEPS expresamente y por separado.","Artículo 19 fracción II LIEPS, regla 5.2.1 RMF 2024","Anexo 1","No proporcionar la información a que se refiere el artículo 19, fracciones II, tercer párrafo, XIII y XV de la Ley del Impuesto Especial sobre Producción y Servicios.\nFundamento: Artículo 81 fracción XVIII CFF.","De $14,380.00 a $23,940.00\n\nFundamento: Artículo 82 fracción XVIII CFF."]
[null,"Proporcionar a las autoridades fiscales durante el mes de marzo de cada año, la información que corresponda de los bienes que produjeron, enajenaron o importaron en el año inmediato anterior, respecto de su consumo por entidad federativa e impuesto correspondiente, así como de los servicios prestados por establecimiento en cada entidad federativa.","Artículo 19 fracción VI LIEPS, regla 5.2.1 RMF 2024","Anexo 8","Artículo 91 CFF. La infracción en cualquier forma a las disposiciones fiscales, diversa a las previstas en este Capítulo, se sancionará con multa $490.00 a $4,640.00"]
[null,"Declaración trimestral de los 50 principales clientes y proveedores.","Artículo 19 fracción VIII LIEPS","Anexo 1","No presentar la información a que se refieren el 19, fracciones VIII, IX y XII, de la Ley del Impuesto Especial sobre Producción y Servicios, dentro del plazo previsto en dichos preceptos, o no presentarla conforme lo establecen los mismos.\nFundamento: Artículo 81 fracción VIII CFF.","De $96,230.00 a $288,660.00\n\nFundamento: Artículo 82 fracción VIII CFF."]
[null,"Los fabricantes, productores o envasadores, de bebidas saborizadas con azúcares añadidos deberán llevar un control físico del volumen fabricado, producido o envasado, según corresponda, así como reportar trimestralmente, en los meses de abril, julio, octubre y enero, del año que corresponda, la lectura mensual de los registros de cada uno de los dispositivos que se utilicen para llevar el citado control, en el trimestre inmediato anterior al de su declaración.","Artículo 19 fracción X LIEPS, regla 5.2.1 RMF 2024","Anexo 9","No proporcionar la información a que se refiere el artículo 19, fracciones X y XVI de la Ley del Impuesto Especial sobre Producción y Servicios.\n\nFundamento: Artículo 81 fracción XIX CFF.","De $23,940.00 a $47,930.00\n\nFundamento: Artículo 82 fracción XIX CFF."]
[]
[]
[null,"Producto","Inciso del artículo 2 fracción I LIEPS"]
[null,"Combustibles Fósiles","H"]
[null,"Obligaciones","Fundamento","Formato MULTI-IEPS"]
[null,"Proporcionar a las autoridades fiscales durante el mes de marzo de cada año, la información que corresponda de los bienes que produjeron, enajenaron o importaron en el año inmediato anterior, respecto de su consumo por entidad federativa e impuesto correspondiente, así como de los servicios prestados por establecimiento en cada entidad federativa.","Artículo 19 fracción VI LIEPS, regla 5.2.1 RMF 2024","Anexo 8","Artículo 91 CFF. La infracción en cualquier forma a las disposiciones fiscales, diversa a las previstas en este Capítulo, se sancionará con multa $490.00 a $4,640.00"]
[null,"Declaración trimestral de los 50 principales clientes y proveedores.","Artículo 19 fracción VIII LIEPS","Anexo 1","No presentar la información a que se refieren el 19, fracciones VIII, IX y XII, de la Ley del Impuesto Especial sobre Producción y Servicios, dentro del plazo previsto en dichos preceptos, o no presentarla conforme lo establecen los mismos.\nFundamento: Artículo 81 fracción VIII CFF.","De $96,230.00 a $288,660.00\n\nFundamento: Artículo 82 fracción VIII CFF."]
[null,"Los fabricantes, productores o envasadores, deberán llevar un control físico del volumen fabricado, producido o envasado, según corresponda, así como reportar trimestralmente, en los meses de abril, julio, octubre y enero, del año que corresponda, la lectura mensual de los registros de cada uno de los dispositivos que se utilicen para llevar el citado control, en el trimestre inmediato anterior al de su declaración.","Artículo 19 fracción X LIEPS, regla 5.2.1 RMF 2024","Anexo 9","No proporcionar la información a que se refiere el artículo 19, fracciones X y XVI de la Ley del Impuesto Especial sobre Producción y Servicios.\n\nFundamento: Artículo 81 fracción XIX CFF.","De $23,940.00 a $47,930.00\n\nFundamento: Artículo 82 fracción XIX CFF."]
[null,"Declaración trimestral del precio de enajenación de cada producto, valor y volumen de los mismos, en caso de vinos de mesa es semestral","Artículo 19 fracción XIII LIEPS, regla 5.2.1 RMF 2024","Anexo 1","No proporcionar la información a que se refiere el artículo 19, fracciones II, tercer párrafo, XIII y XV de la Ley del Impuesto Especial sobre Producción y Servicios.\nFundamento: Artículo 81 fracción XVIII CFF.","De $12,700.00 a $21,150.00\n\nFundamento: Artículo 82 fracción XVIII CFF."]
[]
[]
[null,"Producto","Inciso del artículo 2 fracción I LIEPS"]
[null,"Plaguicidas","I"]
[null,"Obligaciones","Fundamento","Formato MULTI-IEPS"]
[null,"Proporcionar a las autoridades fiscales durante el mes de marzo de cada año, la información que corresponda de los bienes que produjeron, enajenaron o importaron en el año inmediato anterior, respecto de su consumo por entidad federativa e impuesto correspondiente, así como de los servicios prestados por establecimiento en cada entidad federativa.","Artículo 19 fracción VI LIEPS, regla 5.2.1 RMF 2024","Anexo 8","Artículo 91 CFF. La infracción en cualquier forma a las disposiciones fiscales, diversa a las previstas en este Capítulo, se sancionará con multa $490.00 a $4,640.00"]
[null,"Declaración trimestral de los 50 principales clientes y proveedores.","Artículo 19 fracción VIII LIEPS","Anexo 1","No presentar la información a que se refieren el 19, fracciones VIII, IX y XII, de la Ley del Impuesto Especial sobre Producción y Servicios, dentro del plazo previsto en dichos preceptos, o no presentarla conforme lo establecen los mismos.\nFundamento: Artículo 81 fracción VIII CFF.","De $96,230.00 a $288,660.00\n\nFundamento: Artículo 82 fracción VIII CFF."]
[null,"Los fabricantes, productores o envasadores, deberán llevar un control físico del volumen fabricado, producido o envasado, según corresponda, así como reportar trimestralmente, en los meses de abril, julio, octubre y enero, del año que corresponda, la lectura mensual de los registros de cada uno de los dispositivos que se utilicen para llevar el citado control, en el trimestre inmediato anterior al de su declaración.","Artículo 19 fracción X LIEPS, regla 5.2.1 RMF 2024","Anexo 9","No proporcionar la información a que se refiere el artículo 19, fracciones X y XVI de la Ley del Impuesto Especial sobre Producción y Servicios.\n\nFundamento: Artículo 81 fracción XIX CFF.","De $23,940.00 a $47,930.00\n\nFundamento: Artículo 82 fracción XIX CFF."]
[]
[]
[null,"Producto","Inciso del artículo 2 fracción I LIEPS"]
[null,"Alimentos no básicos que se listan a continuación, con una densidad calórica de 275 kilocalorías o mayor por cada 100 gramos ","J"]
[null,"Obligaciones","Fundamento","Formato MULTI-IEPS"]
[null,"Declaración trimestral de los contribuyentes que se les traslado el IEPS expresamente y por separado.","Artículo 19 fracción II LIEPS, regla 5.2.1 RMF 2024","Anexo 1","No proporcionar la información a que se refiere el artículo 19, fracciones II, tercer párrafo, XIII y XV de la Ley del Impuesto Especial sobre Producción y Servicios.\nFundamento: Artículo 81 fracción XVIII CFF.","De $14,380.00 a $23,940.00\n\nFundamento: Artículo 82 fracción XVIII CFF."]
[null,"Proporcionar a las autoridades fiscales durante el mes de marzo de cada año, la información que corresponda de los bienes que produjeron, enajenaron o importaron en el año inmediato anterior, respecto de su consumo por entidad federativa e impuesto correspondiente, así como de los servicios prestados por establecimiento en cada entidad federativa.","Artículo 19 fracción VI LIEPS, regla 5.2.1 RMF 2024","Anexo 8","Artículo 91 CFF. La infracción en cualquier forma a las disposiciones fiscales, diversa a las previstas en este Capítulo, se sancionará con multa $490.00 a $4,640.00"]
[null,"Declaración trimestral de los 50 principales clientes y proveedores.","Artículo 19 fracción VIII LIEPS","Anexo 1","No presentar la información a que se refieren el 19, fracciones VIII, IX y XII, de la Ley del Impuesto Especial sobre Producción y Servicios, dentro del plazo previsto en dichos preceptos, o no presentarla conforme lo establecen los mismos.\nFundamento: Artículo 81 fracción VIII CFF.","De $96,230.00 a $288,660.00\n\nFundamento: Artículo 82 fracción VIII CFF."]

{"sheet":"FUNDAMENTO","index":3,"n_rows":0,"n_cols":0,"rows_kept":0,"cut":false,"hidden":true,"merged":[]}

{"sheet":"EJEMPLO","index":4,"n_rows":62,"n_cols":14,"rows_kept":62,"cut":false,"hidden":true,"merged":[]}
[null,null,null,null,null,null,null,null,null,{"$f":"I6/1.53","v":1019.6078431372549}]
[null,"Ventas"]
[null,"Fecha","Producto","RFC del cliente","Cliente","Entidad federativa","Cantidad","Unidad de medida","Importe","IEPS","IVA","Total","Método de pago","¿Exento?"]
["①","01/05/20xx","Chocolate","XAXX010101000","Público en general","09",10,"Caja",850,null,{"$f":"(I4+J4)*0%","v":0},{"$f":"SUM(I4:K4)","v":850},"PUE","No"]
["②","01/05/20xx","Vino de mesa","MEM890603MJ7","MEM, S.A.","09",30,"Caja",8900,{"$f":"I5*0.265","v":2358.5},{"$f":"(I5+J5)*16%","v":1801.3600000000001},13059.86,"PUE","No"]
["③","01/05/20xx","Brandy","XAXX010101000","Público en general","09",5,"Botella",1560,null,{"$f":"(I6+J6)*16%","v":249.6},1809.6,"PUE","No"]
["①","01/05/20xx","Dulces","XAXX010101000","Público en general","09",1,"Bolsa",89,null,{"$f":"(I7+J7)*0%","v":0},89,"PUE","No"]
["④","01/05/20xx","Cigarro","XAXX010101000","Público en general","09",2,"Paquete",120,null,{"$f":"(I8+J8)*16%","v":19.2},139.19999999999999,"PUE","Sí"]
["④","01/05/20xx","Cerveza","XAXX010101000","Público en general","09",10,"Botellas",210,null,{"$f":"(I9+J9)*16%","v":33.6},243.6,"PUE","Sí"]
["①","01/05/20xx","Chocolate","JBE870603LO9","JBE, S.A. DE C.V.","09",30,"Caja",{"$f":"78.7*G10","v":2361},{"$f":"I10*0.265","v":625.66500000000008},{"$f":"(I10+J10)*16%","v":477.8664},3464.5313999999998,"PUE","No"]
["②","01/05/20xx","Vino de mesa","XAXX010101000","Público en general","09",8,"Botella",960,null,{"$f":"(I11+J11)*16%","v":153.6},1113.5999999999999,"PUE","No"]
["③","01/05/20xx","Brandy","JBE870603LO9","JBE, S.A. DE C.V.","09",5,"Caja",1890,{"$f":"I12*0.53","v":1001.7},{"$f":"(I12+J12)*16%","v":462.67199999999997},3354.3719999999998,"PUE","No"]
["①","01/05/20xx","Dulces","MEM890603MJ7","MEM, S.A.","09",20,"Bolsa",750,null,{"$f":"(I13+J13)*0%","v":0},750,"PUE","No"]
[null,null,null,null,null,null,null,null,{"$f":"SUM(I4:I13)","v":17690},{"$f":"SUM(J4:J13)","v":3985.8649999999998},3197.8983999999996,24873.7634]
[null,"Registro contable del 01/05/20xx"]
[null,"Clientes",null,null,{"$f":"L14","v":24873.7634}]
[null,"IEPS trasladado pendiente de cobro",null,null,null,{"$f":"J14+(((I4+I7+I13)/1.08)*0.08)+((I6/1.53)*0.53)+((I11/1.265)*0.265)","v":4852.4749873414448}]
[null,"IVA trasladado pendiente de cobro",null,null,null,{"$f":"K14","v":3197.8983999999996}]
[null,"Ventas IEPS 8%, IVA 0%",null,null,null,{"$f":"I10+((I4+I7+I13)/1.08)","v":3924.8888888888887},"①"]
[null,"Ventas IEPS 26.5%, IVA 16%",null,null,null,{"$f":"I5+(I11/1.265)","v":9658.8932806324119},"②"]
[null,"Ventas IEPS 53%, IVA 16%",null,null,null,{"$f":"I12+(I6/1.53)","v":2909.6078431372548},"③"]
[null,"Ventas IVA 16%",null,null,null,{"$f":"I8+I9","v":330},"④"]
[null,null,null,null,{"$f":"SUM(E16:E22)","v":24873.7634},{"$f":"SUM(F16:F22)","v":24873.7634}]
[]
[]
[null,"Ventas cobradas"]
[]
[null,"Fecha","Producto","RFC del cliente","Cliente","Entidad federativa","Cantidad","Unidad de medida","Importe","IEPS","IVA","Total","Método de pago","¿Exento?"]
[null,"01/05/20xx","Chocolate","XAXX010101000","Público en general","09",10,"Caja",{"$f":"(I4/1.08)","v":787.03703703703695},{"$f":"I29*0.08","v":62.962962962962955},0,850,"PUE","No"]
[null,"01/05/20xx","Vino de mesa","MEM890603MJ7","MEM, S.A.","09",30,"Caja",8900,2358.5,1801.3600000000001,13059.86,"PUE","No"]
[null,"01/05/20xx","Brandy","XAXX010101000","Público en general","09",5,"Botella",{"$f":"(I6/1.53)","v":1019.6078431372549},{"$f":"I31*0.53","v":540.39215686274508},249.6,1809.6,"PUE","No"]
[null,"01/05/20xx","Dulces","XAXX010101000","Público en general","09",1,"Bolsa",{"$f":"(I7/1.08)","v":82.407407407407405},{"$f":"I32*0.08","v":6.5925925925925926},0,89,"PUE","No"]
[null,"01/05/20xx","Chocolate","JBE870603LO9","JBE, S.A. DE C.V.","09",30,"Bolsa",2361,625.66500000000008,477.8664,3464.5313999999998,"PUE","No"]
[null,"01/05/20xx","Vino de mesa","XAXX010101000","Público en general","09",8,"Botella",{"$f":"(I11/1.265)","v":758.89328063241112},{"$f":"I34*0.265","v":201.10671936758897},153.6,1113.5999999999999,"PUE","No"]
[null,"01/05/20xx","Brandy","JBE870603LO9","JBE, S.A. DE C.V.","09",5,"Caja",1890,1001.7,462.67199999999997,3354.3719999999998,"PUE","No"]
[null,"01/05/20xx","Dulces","MEM890603MJ7","MEM, S.A.","09",20,"Bolsa",{"$f":"(I13/1.08)","v":694.44444444444434},{"$f":"I36*0.08","v":55.55555555555555},0,750,"PUE","No"]
[null,null,null,null,null,null,null,null,{"$f":"SUM(I29:I36)","v":16493.390012658554},{"$f":"SUM(J29:J36)","v":4852.4749873414457},3145.0983999999999,24490.963399999997]
[]
[null,"Compras"]
[null,"Fecha","Producto","RFC del cliente","Cliente","Entidad federativa","Cantidad","Unidad de medida","Importe","IEPS","IVA","Total","Método de pago","¿Exento?"]
[null,"18/05/20xx","Vino de mesa","RER900603LO9","RER, S.A. DE C.V.",15,100,"Caja",54000,{"$f":"I41*0.265","v":14310},{"$f":"(I41+J41)*16%","v":10929.6},{"$f":"SUM(I41:K41)","v":79239.600000000006},"PUE","No"]
[]
[]
[]
[]
[null,"Determinación de IEPS mensual"]
[]
[null,"IEPS trasladado cobrado",null,{"$f":"SUM(C49:C50)","v":750.77611111111116}]
[null,"Chocolate",{"$f":"J29+J33","v":688.62796296296301}]
[null,"Dulces (productos de confiteria)",{"$f":"J32+J36","v":62.148148148148145}]
[null,"(-) IEPS acreditable pagado",null,0]
[null,"(=) IEPS por pagar",null,{"$f":"D48-D51","v":750.77611111111116}]
[]
[]
[null,"IEPS trasladado cobrado",null,{"$f":"SUM(C56:C57)","v":4101.6988762303336}]
[null,"Vino de mesa hasta 14° GL",{"$f":"J30+J34","v":2559.606719367589}]
[null,"Brandy más de 20° GL",{"$f":"J31+J35","v":1542.092156862745}]
[null,"(-) IEPS acreditable pagado",null,{"$f":"J41","v":14310}]
[null,"(=) IEPS saldo a favor",null,{"$f":"D55-D58","v":-10208.301123769666}]
[]
[null,null,"Saldo a favor"]
[null,"Mayo 20xx",10208]

{"sheet":"ANEXO1","index":5,"n_rows":7,"n_cols":27,"rows_kept":7,"cut":false,"hidden":true,"merged":[]}
[null,"ANEXO 1 - INFORMACIÓN SOBRE IMPORTE Y VOLUMEN DE COMPRAS Y VENTAS   "]
[null,"Periodo","Octubre-Diciembre","Año",2025]
[]
[null,"Campo1","Campo2","Campo3","Campo4","Campo5","Campo6","Campo7","Campo8","Campo9","Campo10","Campo11","Campo12","Campo13","Campo14","Campo15","Campo16","Campo17","Campo18","Campo19","Campo20","Campo21","Campo22","Campo23","Campo24","Campo25","Campo26"]
[null,"TIPO DE OPERACIÓN","RFC DEL CLIENTE O PROVEEDOR","APELLIDO PATERNO, APELLIDO MATERNO, NOMBRE (S)","CLAVE DE LA ENTIDAD FEDERATIVA","TIPO DE PRODUCTO","EMPRESA TABACALERA","CLAVE GENERICA DEL PRODUCTO","GRADUACION","Volumen total de enajenación por tipo de producto","EMPAQUE","PRESENTACION","UNIDAD DE MEDIDA","VALOR DE LA OPERACIÓN ANTES DE IMPUESTOS","Valor de la operación valuada al precio de venta al detallista","IEPS PAGADO / TRASLADADO","IVA PAGADO / TRASLADADO","IEPS trasladado por la aplicación de la cuota específica de cigarros enajenados","IEPS trasladado por la aplicación de la cuota específica por el peso total en gramos de los puros y otros tabacos labrados enajenados","IEPS trasladado por la aplicación de la cuota específica por el peso total en gramos de los puros y otros tabacos labrados hechos enteramente a mano enajenados","IEPS trasladado por la aplicación de la cuota de bebidas saborizadas","IEPS trasladado por la aplicación de la cuota de bebidas energetizantes","IEPS pagados en la importación por la aplicación de la cuota específica de cigarros","IEPS pagados en la importación por la aplicación de la cuota específica de los puros y otros tabacos labrados","IEPS pagados en la importación por la aplicación de la cuota específica de los puros y otros tabacos labrados hechos enteramente a mano","IEPS pagado en la importación por la aplicación de la cuota de bebidas saborizadas","IEPS pagado en la importación por la aplicación de la cuota de bebidas energetizantes"]
[null,"G","XAXX010101000","PUBLICO EN GENERAL","09","001","00","022","003",5,"004","0.750","005",1020,null,0,250]
[null,"C","JBE870603LO9","JBE SA DE CV","09","001","00","022","003",5,"005","12","005",1890,null,1002,463]

{"sheet":"ANEXO3","index":6,"n_rows":6,"n_cols":13,"rows_kept":6,"cut":false,"hidden":true,"merged":[]}
[null,"ANEXO 3 - INFORMACIÓN DE LOS EQUIPOS DE PRODUCCIÓN, DESTILACIÓN O ENVASAMIENTO  "]
[null,"Periodo",null,"Año "]
[]
[null,"Campo1","Campo2","Campo3","Campo4","Campo5","Campo6","Campo7","Campo8","Campo9","Campo10","Campo11","Campo12"]
[null,"Localización de la planta","Tipo de equipos","Fabricante","Marca","Modelo","Número de serie","País de origen","Capacidad (litros 55% / 24 hrs)","Velocidad ( litros / minutos)","Platos","Válvulas","Alambiques"]
[null,null,"E"]

{"sheet":"ANEXO4","index":7,"n_rows":5,"n_cols":12,"rows_kept":5,"cut":false,"hidden":true,"merged":[[0,1,0,2]]}
[null,"ANEXO 4 - REPORTE DE INICIO O TÉRMINO DEL PROCESO DE PRODUCCIÓN O DESTILACIÓN"]
[null,"Periodo",null,"Año "]
[]
[null,"Campo1","Campo2","Campo3","Campo4","Campo5","Campo6","Campo7","Campo8","Campo9","Campo10","Campo11"]
[null,"Fecha de inicio","Fecha de término","Indique la periodicidad del proceso","Materia prima a utilizar","Cantidad","Unidad de medida","Existencias (litros)","Volumen estimado a destilar (lts 55%)","Volumen fabricado o producido (lts 55%)","Merma","Uso de la producción"]

{"sheet":"ANEXO5","index":8,"n_rows":5,"n_cols":13,"rows_kept":5,"cut":false,"hidden":true,"merged":[[0,1,0,2]]}
[null,"ANEXO 5 - REPORTE DE INICIO O TÉRMINO DEL PROCESO DE ENVASAMIENTO "]
[null,"Periodo",null,"Año "]
[]
[null,"Campo1","Campo2","Campo3","Campo4","Campo5","Campo6","Campo7","Campo8","Campo9","Campo10","Campo11","Campo12"]
[null,"Fecha de inicio","Fecha de término","Indique la periodicidad del proceso","Nombre genérico de la bebida a envasar","Procedencia","Graduación alcohólica","Capacidad de la botella (litros)","Unidades","Destino de la producción","Litros envasados durante el proceso","Mermas","Litros ingresados a la planta al inicio del proceso"]

{"sheet":"ANEXO8V","index":9,"n_rows":5,"n_cols":6,"rows_kept":5,"cut":false,"hidden":true,"merged":[]}
[null,"Distribución de producción y ventas por entidad federativa"]
[null,"Año",null,"Periodo  "]
[]
[null,"Campo1","Campo2","Campo3","Campo4","Campo5"]
[null,"Identificación del tercero","Producto o servicio que declara","Entidad federativa","Valor total de la producción","Importe de las ventas"]

{"sheet":"ANEXO9","index":10,"n_rows":5,"n_cols":16,"rows_kept":5,"cut":false,"hidden":true,"merged":[[0,1,0,3]]}
[null," ANEXO 9 - INFORMACIÓN DE REPORTE TRIMESTRAL DE LOS REGISTROS DE CADA UNO DE LOS DISPOSITIVOS QUE SE UTILICEN PARA LLEVAR EL CONTROL FÍSICO DEL VOLUMEN FABRICADO, PRODUCIDO O ENVASADO "]
[null,"Periodo",null,"Año "]
[]
[null,"Campo1","Campo2","Campo3","Campo4","Campo5","Campo6","Campo7","Campo8","Campo9","Campo10","Campo11","Campo12","Campo13","Campo14","Campo15"]
[null,"Indique si se trata de","Indique el rubro de que se trate","Empresa tabacalera","Tipo de producto tabacos","Tipo de producto confis","Unidades","Empaque","Presentación","Unidad de medida","Número de cajas producidas en el periódo","Número de envases por caja","Número de cajas de cigarros o tabacos labrados producidos en el periódo","Número de cajetillas por caja","Lectura de Integrador de Volumen aparente Inicial","Lectura de Integrador de Volumen aparente Final"]

{"sheet":"CLAVEG","index":11,"n_rows":51,"n_cols":15,"rows_kept":51,"cut":false,"hidden":true,"merged":[]}
[]
[null,"Bebidas alcohólicas",null,null,"Combustibles fosiles",null,null,"Plaguicidas",null,null,"Alimentos con alta densidad calórica",null,null,"Combustibles automotrices"]
[]
[null,"Clave","Descripción",null,"Clave","Descripción",null,"Clave","Descripción",null,"Clave","Descripción",null,"Clave","Descripción"]
[null,"001","Aguardiente Abocado o Reposado",null,"002","Butano",null,"002","Categoría 3",null,"008","Alimentos preparadoa a base de cereales",null,"004","Combustibles no fósiles"]
[null,"005","Aguardiente añejo",null,"009","Carbón mineral",null,"003","Categoría 4",null,"001","Botanas",null,"003","Diésel"]
[null,"008","Aguardiente con Sabor",null,"006","Combustóleo",null,"001","Categorías 1 y 2",null,"003","Chocolate y dempas productos derivados del cacao",null,"002","Gasolina mayor o igual a 91 octanos"]
[null,"002","Aguardiente Standard (blanco u oro)",null,"008","Coque de cargón",null,"000","Sin selección",null,"006","Cremas de cacahuate y avellanas",null,"001","Gasolina menor a 91 octanos"]
[null,"023","Amaretto",null,"007","Coque petróleo",null,null,null,null,"005","Dulces de frutas y horalizas",null,"000","Sin selección"]
[null,"017","Anís",null,"005","Diesel",null,null,null,null,"007","Dulces de leche"]
[null,"012","Bacanora",null,"003","Gasolinas y gasavión",null,null,null,null,"004","Flanes y pudines"]
[null,"045","Bebidas Refrescantes",null,"010","Otros combustibles fósiles",null,null,null,null,"009","Helados, nieves y paletas de hielo"]
[null,"022","Brandy",null,"001","Propano",null,null,null,null,"002","Productos de confiter+ia"]
[null,"028","Brandy Reserva",null,"000","Sin selección",null,null,null,null,"000","Sin Selección"]
[null,"033","Brandy Solera",null,"004","Turbosina y otros kerosenos"]
[null,"037","Calvados"]
[null,"044","Cerveza"]
[null,"003","Charanda"]
[null,"009","Cocteles"]
[null,"039","Cognac V.S."]
[null,"042","Cognac V.S.O.P"]
[null,"043","Cognac X.O."]
[null,"013","Comiteco"]
[null,"034","Cremas base Whisky"]
[null,"018","Habanero"]
[null,"014","Lechuguilla o raicilla"]
[null,"024","Licor de Café o Cacao"]
[null,"004","Licor de hierbas regionales"]
[null,"010","Licores y Cremas hasta 20% Alc. Vol."]
[null,"025","Licores y Cremas más de 20% Al. Vol."]
[null,"015","Mezcal"]
[null,"047","Otros"]
[null,"011","Parras"]
[null,"007","Rompope"]
[null,"020","Ron"]
[null,"027","Ron Añejo"]
[null,"029","Ron con Sabor"]
[null,"030","Ron Reserva"]
[null,"000","Sin selección"]
[null,"016","Sotol"]
[null,"041","Tenessee de Luxe"]
[null,"036","Tenessee Standard"]
[null,"038","Tequila añejo 100% agave"]
[null,"021","Tequila joven o blanco"]
[null,"031","Tequila joven o blanco 100% agave"]
[null,"032","Tequila reposado 100% agave"]
[null,"026","Tequila reposado o añejo"]
[null,"046","Vinos de mesa"]
[null,"019","Vodka"]
[null,"035","Whisky o Whiskey, Borbon o Bourbon"]
[null,"040","Whisky o Whiskey, Borbon o Bourbon"]

{"sheet":"PAISO","index":12,"n_rows":244,"n_cols":3,"rows_kept":244,"cut":false,"hidden":true,"merged":[]}
[]
[null,"País de origen"]
[]
[null,"Valor","Descripción"]
[null,"XXX","      SIN SELECCIÓN"]
[null,"AFG","AFGANISTAN (EMIRATO ISLAMICO DE)"]
[null,"ALB","ALBANIA (REPUBLICA DE)"]
[null,"DEU","ALEMANIA (REPUBLICA FEDERAL DE)"]
[null,"AND","ANDORRA (PRINCIPADO DE)"]
[null,"AGO","ANGOLA (REPUBLICA DE)"]
[null,"AIA","ANGUILA"]
[null,"ATG","ANTIGUA Y BARBUDA (COMUNIDAD BRITANICA DE NACIONES)"]
[null,"ANT","ANTILLAS NEERLANDESAS (TERRITORIO HOLANDES DE ULTRAMAR)"]
[null,"SAU","ARABIA SAUDITA (REINO DE)"]
[null,"DZA","ARGELIA (REPUBLICA DEMOCRATICA Y POPULAR DE)"]
[null,"ARG","ARGENTINA (REPUBLICA)"]
[null,"ARM","ARMENIA (REPUBLICA DE)"]
[null,"ABW","ARUBA (TERRITORIO HOLANDES DE ULTRAMAR)"]
[null,"AUS","AUSTRALIA (COMUNIDAD DE)"]
[null,"AUT","AUSTRIA (REPUBLICA DE)"]
[null,"AZE","AZERBAIJAN (REPUBLICA AZERBAIJANI)"]
[null,"BHS","BAHAMAS (COMUNIDAD DE LAS)"]
[null,"BHR","BAHREIN (ESTADO DE)"]
[null,"BGD","BANGLADESH (REPUBLICA POPULAR DE)"]
[null,"BRB","BARBADOS (COMUNIDAD BRITANICA DE NACIONES)"]
[null,"BEL","BELGICA (REINO DE)"]
[null,"BLZ","BELICE"]
[null,"BEN","BENIN (REPUBLICA DE)"]
[null,"BMU","BERMUDAS"]
[null,"BLR","BIELORRUSIA (REPUBLICA DE)"]
[null,"BOL","BOLIVIA (REPUBLICA DE)"]
[null,"BIH","BOSNIA Y HERZEGOVINA"]
[null,"BWA","BOTSWANA (REPUBLICA DE)"]
[null,"BRA","BRASIL (REPUBLICA FEDERATIVA DE)"]
[null,"BRN","BRUNEI (ESTADO DE) (RESIDENCIA DE PAZ)"]
[null,"BGR","BULGARIA (REPUBLICA DE)"]
[null,"BFA","BURKINA FASO"]
[null,"BDI","BURUNDI (REPUBLICA DE)"]
[null,"BTN","BUTAN (REINO DE)"]
[null,"CPV","CABO VERDE (REPUBLICA DE)"]
[null,"CYM","CAIMAN (ISLAS)"]
[null,"KHM","CAMBOYA (REINO DE)"]
[null,"CMR","CAMERUN (REPUBLICA DEL)"]
[null,"CAN","CANADA"]
[null,"RKE","CANAL, ISLAS DEL (ISLAS NORMANDAS)"]
[null,"TCD","CHAD (REPUBLICA DEL)"]
[null,"CHL","CHILE (REPUBLICA DE)"]
[null,"CHN","CHINA (REPUBLICA POPULAR)"]
[null,"CYP","CHIPRE (REPUBLICA DE)"]
[null,"CIA","CIUDAD DEL VATICANO (ESTADO DE LA)"]
[null,"CCK","COCOS (KEELING, ISLAS AUSTRALIANAS)"]
[null,"COL","COLOMBIA (REPUBLICA DE)"]
[null,"COM","COMORAS (ISLAS)"]
[null,"EMU","COMUNIDAD EUROPEA"]
[null,"COG","CONGO (REPUBLICA DEL)"]
[null,"COK","COOK (ISLAS)"]
[null,"KOR","COREA (REPUBLICA DE) (COREA DEL SUR)"]
[null,"PRK","COREA (REPUBLICA POPULAR DEMOCRATICA DE) (COREA DEL NORTE)"]
[null,"CIV","COSTA DE MARFIL (REPUBLICA DE LA)"]
[null,"CRI","COSTA RICA (REPUBLICA DE)"]
[null,"HRV","CROACIA (REPUBLICA DE)"]
[null,"CUB","CUBA (REPUBLICA DE)"]
[null,"CUR","CURAZAO (TERRITORIO HOLANDES DE ULTRAMAR)"]
[null,"DNK","DINAMARCA (REINO DE)"]
[null,"DJI","DJIBOUTI (REPUBLICA DE)"]
[null,"DMA","DOMINICA (COMUNIDAD DE)"]
[null,"ECU","ECUADOR (REPUBLICA DEL)"]
[null,"EGY","EGIPTO (REPUBLICA ARABE DE)"]
[null,"SLV","EL SALVADOR (REPUBLICA DE)"]
[null,"ARE","EMIRATOS ARABES UNIDOS"]
[null,"ERI","ERITREA (ESTADO DE)"]
[null,"SVN","ESLOVENIA (REPUBLICA DE)"]
[null,"ESP","ESPAÑA (REINO DE)"]
[null,"DSM","ESTADO FEDERADO DE MICRONESIA"]
[null,"USA","ESTADOS UNIDOS DE AMERICA"]
[null,"EST","ESTONIA (REPUBLICA DE)"]
[null,"ETH","ETIOPIA (REPUBLICA DEMOCRATICA FEDERAL)"]
[null,"FJI","FIDJI (REPUBLICA DE)"]
[null,"PHL","FILIPINAS (REPUBLICA DE LAS)"]
[null,"FIN","FINLANDIA (REPUBLICA DE)"]
[null,"FRA","FRANCIA (REPUBLICA FRANCESA)"]
[null,"GZA","FRANJA DE GAZA"]
[null,"GAB","GABONESA (REPUBLICA)"]
[null,"GMB","GAMBIA (REPUBLICA DE LA)"]
[null,"GEO","GEORGIA (REPUBLICA DE)"]
[null,"GHA","GHANA (REPUBLICA DE)"]
[null,"GIB","GIBRALTAR (R.U.)"]
[null,"GRD","GRANADA"]
[null,"GRC","GRECIA (REPUBLICA HELENICA)"]
[null,"GRL","GROENLANDIA (DINAMARCA)"]
[null,"GLP","GUADALUPE (DEPARTAMENTO DE)"]
[null,"GUM","GUAM (E.U.A.)"]
[null,"GTM","GUATEMALA (REPUBLICA DE)"]
[null,"GIN","GUINEA (REPUBLICA DE)"]
[null,"GNQ","GUINEA ECUATORIAL (REPUBLICA DE)"]
[null,"GNB","GUINEA-BISSAU (REPUBLICA DE)"]
[null,"GUY","GUYANA (REPUBLICA COOPERATIVA DE)"]
[null,"GUF","GUYANA FRANCESA"]
[null,"HTI","HAITI (REPUBLICA DE)"]
[null,"HND","HONDURAS (REPUBLICA DE)"]
[null,"HKG","HONG KONG (REGION ADMINISTRATIVA ESPECIAL DE LA REPUBLICA)"]
[null,"HUN","HUNGRIA (REPUBLICA DE)"]
[null,"IND","INDIA (REPUBLICA DE)"]
[null,"IDN","INDONESIA (REPUBLICA DE)"]
[null,"IRQ","IRAK (REPUBLICA DE)"]
[null,"IRN","IRAN (REPUBLICA ISLAMICA DEL)"]
[null,"IRL","IRLANDA (REPUBLICA DE)"]
[null,"ISL","ISLANDIA (REPUBLICA DE)"]
[null,"LHM","ISLAS HEARD Y MCDONALD"]
[null,"FLK","ISLAS MALVINAS (R.U.)"]
[null,"MNP","ISLAS MARIANAS SEPTENTRIONALES"]
[null,"MHL","ISLAS MARSHALL"]
[null,"SLB","ISLAS SALOMON (COMUNIDAD BRITANICA DE NACIONES)"]
[null,"SJM","ISLAS SVALBARD Y JAN MAYEN (NORUEGA)"]
[null,"TKL","ISLAS TOKELAU"]
[null,"WLF","ISLAS WALLIS Y FUTUNA"]
[null,"ISR","ISRAEL (ESTADO DE)"]
[null,"ITA","ITALIA (REPUBLICA ITALIANA)"]
[null,"JAM","JAMAICA"]
[null,"JPN","JAPON"]
[null,"JOR","JORDANIA (REINO HACHEMITA DE)"]
[null,"KAZ","KAZAKHSTAN (REPUBLICA DE) "]
[null,"KEN","KENYA (REPUBLICA DE)"]
[null,"KIR","KIRIBATI (REPUBLICA DE)"]
[null,"KWT","KUWAIT (ESTADO DE)"]
[null,"KGZ","KYRGYZSTAN (REPUBLICA KIRGYZIA)"]
[null,"LSO","LESOTHO (REINO DE)"]
[null,"LVA","LETONIA (REPUBLICA DE)"]
[null,"LBN","LIBANO (REPUBLICA DE)"]
[null,"LBR","LIBERIA (REPUBLICA DE)"]
[null,"LBY","LIBIA (JAMAHIRIYA LIBIA ARABE POPULAR SOCIALISTA)"]
[null,"LIE","LIECHTENSTEIN (PRINCIPADO DE)"]
[null,"LTU","LITUANIA (REPUBLICA DE)"]
[null,"LUX","LUXEMBURGO (GRAN DUCADO DE)"]
[null,"MAC","MACAO"]
[null,"MKD","MACEDONIA (ANTIGUA REPUBLICA YUGOSLAVA DE)"]
[null,"MDG","MADAGASCAR (REPUBLICA DE)"]
[null,"MYS","MALASIA"]
[null,"MWI","MALAWI (REPUBLICA DE)"]
[null,"MDV","MALDIVAS (REPUBLICA DE)"]
[null,"MLI","MALI (REPUBLICA DE)"]
[null,"MLT","MALTA (REPUBLICA DE)"]
[null,"MAR","MARRUECOS (REINO DE)"]
[null,"MTQ","MARTINICA (DEPARTAMENTO DE) (FRANCIA)"]
[null,"MUS","MAURICIO (REPUBLICA DE)"]
[null,"MRT","MAURITANIA (REPUBLICA ISLAMICA DE)"]
[null,"MEX","MEXICO (ESTADOS UNIDOS MEXICANOS)"]
[null,"MDA","MOLDAVIA (REPUBLICA DE)"]
[null,"MCO","MONACO (PRINCIPADO DE)"]
[null,"MNG","MONGOLIA"]
[null,"MSR","MONSERRAT (ISLA)"]
[null,"MOZ","MOZAMBIQUE (REPUBLICA DE)"]
[null,"MMR","MYANMAR (UNION DE)"]
[null,"NAM","NAMIBIA (REPUBLICA DE)"]
[null,"NRU","NAURU"]
[null,"CXI","NAVIDAD (CHRISTMAS) (ISLAS)"]
[null,"NPL","NEPAL (REINO DE)"]
[null,"NIC","NICARAGUA (REPUBLICA DE)"]
[null,"NER","NIGER (REPUBLICA DE)"]
[null,"NGA","NIGERIA (REPUBLICA FEDERAL DE)"]
[null,"NIU","NIVE (ISLA)"]
[null,"NFK","NORFOLK (ISLA)"]
[null,"NOR","NORUEGA (REINO DE)"]
[null,"NCL","NUEVA CALEDONIA (TERRITORIO FRANCES DE ULTRAMAR)"]
[null,"NZL","NUEVA ZELANDIA"]
[null,"OMN","OMAN (SULTANATO DE)"]
[null,"PIK","PACIFICO, ISLAS DEL (ADMON. E.U.A.)"]
[null,"ZYA","PAISES BAJOS (REINO DE LOS) (HOLANDA)"]
[null,"KCD","PAISES NO DECLARADOS"]
[null,"PAK","PAKISTAN (REPUBLICA ISLAMICA DE)"]
[null,"PLW","PALAU (REPUBLICA DE)"]
[null,"PAN","PANAMA (REPUBLICA DE)"]
[null,"PNG","PAPUA NUEVA GUINEA (ESTADO INDEPENDIENTE DE)"]
[null,"PRY","PARAGUAY (REPUBLICA DEL)"]
[null,"PER","PERU (REPUBLICA DEL)"]
[null,"PCN","PITCAIRNS (ISLAS DEPENDENCIA BRITANICA)"]
[null,"PYF","POLINESIA FRANCESA"]
[null,"POL","POLONIA (REPUBLICA DE)"]
[null,"PRT","PORTUGAL (REPUBLICA PORTUGUESA)"]
[null,"PRI","PUERTO RICO (ESTADO LIBRE ASOCIADO DE LA COMUNIDAD DE)"]
[null,"QAT","QATAR (ESTADO DE)"]
[null,"GBR","REINO UNIDO DE LA GRAN BRETAÑA E IRLANDA DEL NORTE"]
[null,"CAF","REPUBLICA CENTROAFRICANA"]
[null,"CZE","REPUBLICA CHECA"]
[null,"LAO","REPUBLICA DEMOCRATICA POPULAR LAOS"]
[null,"DOM","REPUBLICA DOMINICANA"]
[null,"SVK","REPUBLICA ESLOVACA"]
[null,"COD","REPUBLICA POPULAR DEL CONGO"]
[null,"RWA","REPUBLICA RUANDESA"]
[null,"REU","REUNION (DEPARTAMENTO DE LA) (FRANCIA)"]
[null,"ROM","RUMANIA"]
[null,"RUS","RUSIA (FEDERACION RUSA)"]
[null,"ESH","SAHARA OCCIDENTAL (REPUBLICA ARABE SAHARAVI DEMOCRATICA)"]
[null,"WSM","SAMOA (ESTADO INDEPENDIENTE DE)"]
[null,"KNA","SAN CRISTOBAL Y NIEVES (FEDERACION DE) (SAN KITTS-NEVIS)"]
[null,"SMR","SAN MARINO (SERENISIMA REPUBLICA DE)"]
[null,"SPM","SAN PEDRO Y MIQUELON"]
[null,"VCT","SAN VICENTE Y LAS GRANADINAS"]
[null,"SHN","SANTA ELENA"]
[null,"LCA","SANTA LUCIA"]
[null,"STP","SANTO TOME Y PRINCIPE (REPUBLICA DEMOCRATICA DE)"]
[null,"SEN","SENEGAL (REPUBLICA DEL)"]
[null,"SYC","SEYCHELLES (REPUBLICA DE LAS)"]
[null,"SLE","SIERRA LEONA (REPUBLICA DE)"]
[null,"SGP","SINGAPUR (REPUBLICA DE)"]
[null,"SYR","SIRIA (REPUBLICA ARABE)"]
[null,"SOM","SOMALIA"]
[null,"LKA","SRI LANKA (REPUBLICA DEMOCRATICA SOCIALISTA DE)"]
[null,"ZAF","SUDAFRICA (REPUBLICA DE)"]
[null,"SDN","SUDAN (REPUBLICA DEL)"]
[null,"SWE","SUECIA (REINO DE)"]
[null,"CHE","SUIZA (CONFEDERACION)"]
[null,"SUR","SURINAME (REPUBLICA DE)"]
[null,"SWZ","SWAZILANDIA (REINO DE)"]
[null,"TJK","TADJIKISTAN (REPUBLICA DE)"]
[null,"THA","TAILANDIA (REINO DE)"]
[null,"TWN","TAIWAN (REPUBLICA DE CHINA)"]
[null,"TZA","TANZANIA (REPUBLICA UNIDA DE)"]
[null,"XCH","TERRITORIOS BRITANICOS DEL OCEANO INDICO"]
[null,"FXA","TERRITORIOS FRANCESES, AUSTRALES Y ANTARTICOS"]
[null,"TMP","TIMOR ORIENTAL"]
[null,"TGO","TOGO (REPUBLICA TOGOLESA)"]
[null,"TON","TONGA (REINO DE)"]
[null,"TTO","TRINIDAD Y TOBAGO (REPUBLICA DE)"]
[null,"TUN","TUNEZ (REPUBLICA DE)"]
[null,"TCA","TURCAS Y CAICOS (ISLAS)"]
[null,"TKM","TURKMENISTAN (REPUBLICA DE)"]
[null,"TUR","TURQUIA (REPUBLICA DE)"]
[null,"TUV","TUVALU (COMUNIDAD BRITANICA DE NACIONES)"]
[null,"UKR","UCRANIA"]
[null,"UGA","UGANDA (REPUBLICA DE)"]
[null,"URY","URUGUAY (REPUBLICA ORIENTAL DEL)"]
[null,"UZB","UZBEJISTAN (REPUBLICA DE)"]
[null,"VUT","VANUATU"]
[null,"VEN","VENEZUELA (REPUBLICA DE)"]
[null,"VNM","VIETNAM (REPUBLICA SOCIALISTA DE)"]
[null,"VGB","VIRGENES. ISLAS (BRITANICAS)"]
[null,"VIR","VIRGENES. ISLAS (NORTEAMERICANAS)"]
[null,"YEM","YEMEN (REPUBLICA DE)"]
[null,"YUG","YUGOSLAVIA (REPUBLICA FEDERAL DE)"]
[null,"ZMB","ZAMBIA (REPUBLICA DE)"]
[null,"ZWE","ZIMBABWE (REPUBLICA DE)"]
[null,"PTY","ZONA DEL CANAL DE PANAMA"]
[null,"RUH","ZONA NEUTRAL IRAQ-ARABIA SAUDITA"]

{"sheet":"CODIGO","index":13,"n_rows":36,"n_cols":4,"rows_kept":36,"cut":false,"hidden":true,"merged":[]}
[]
[]
[null,"Inicial","Final","Estado"]
[null,20000,20997,"   01  Aguascalientes"]
[null,21000,22997,"   02  Baja California"]
[null,23000,23997,"   03  Baja California Sur"]
[null,24000,24940,"   04  Campeche"]
[null,25000,27997,"   05  Coahuila"]
[null,28000,28989,"   06  Colima"]
[null,29000,30997,"   07  Chiapas"]
[null,31000,33997,"   08  Chihuahua"]
[null,"01000",16900,"   09  Distrito Federal"]
[null,34000,35987,"   10  Durango"]
[null,36000,38997,"   11  Guanajuato"]
[null,39000,41998,"   12  Guerrero"]
[null,42000,43998,"   13  Hidalgo"]
[null,44100,49996,"   14  Jalisco"]
[null,50000,57950,"   15  Estado de México"]
[null,58000,61998,"   16  Michoacán"]
[null,62000,62996,"   17  Morelos"]
[null,63000,63996,"   18  Nayarit"]
[null,64000,67996,"   19  Nuevo León"]
[null,68000,71998,"   20  Oaxaca"]
[null,72000,75997,"   21  Puebla"]
[null,76000,76998,"   22  Querétaro"]
[null,77000,77997,"   23  Quintana Roo"]
[null,78000,79998,"   24  San Luis Potosí"]
[null,80000,82996,"   25  Sinaloa"]
[null,83000,85994,"   26  Sonora"]
[null,86000,86998,"   27  Tabasco"]
[null,87000,89970,"   28  Tamaulipas"]
[null,90000,90990,"   29  Tlaxcala"]
[null,91000,96998,"   30  Veracruz"]
[null,97000,97990,"   31  Yucatán"]
[null,98000,99998,"   32  Zacatecas"]
[null,null,null,"   33  Extranjeros"]

{"sheet":"GENERALES","index":14,"n_rows":23,"n_cols":5,"rows_kept":23,"cut":false,"hidden":true,"merged":[]}
[]
[]
[]
[null,"Trimestre","Año"]
[null,"Enero-Marzo",2022,null,"Enero"]
[null,"Abirl-Junio",2023,null,"Febrero"]
[null,"Julio-Septiembre",2024,null,"Marzo"]
[null,"Octubre-Diciembre",2025,null,"Abril"]
[null,"Enero-Junio",null,null,"Mayo"]
[null,"Julio-Diciembre",null,null,"Junio"]
[null,null,null,null,"Julio"]
[null,null,null,null,"Agosto"]
[null,null,null,null,"Septiembre"]
[null,null,null,null,"Octubre"]
[null,null,null,null,"Noviembre"]
[null,null,null,null,"Diciembre"]
[]
[]
[]
[]
[null,"VNUMERO = Range(\"BB\" & A) & \"|\" & Range(\"BC\" & A) & \"|\" & Range(\"BD\" & A) & \"|\" & Range(\"BE\" & A) & \"|\" & Range(\"BF\" & A) & \"|\" & Range(\"BG\" & A) & \"|\" & _"]
[null,"    Range(\"BH\" & A) & \"|\" & Range(\"BI\" & A) & \"|\" & Range(\"BJ\" & A) & \"|\" & Range(\"BK\" & A) & \"|\" & Range(\"BL\" & A) & \"|\" & Range(\"BM\" & A) & Range(\"BN\" & A) & Range(\"BO\" & A) & Range(\"BP\" & A) _"]
[null,"    & Range(\"BQ\" & A) & Range(\"BR\" & A)& Range(\"BS\" & A)& Range(\"BT\" & A)& Range(\"BU\" & A)& Range(\"BV\" & A)& Range(\"BW\" & A)& Range(\"BX\" & A)& Range(\"BY\" & A)& Range(\"BZ\" & A) _"]